bitfinex/quotes_ETHUSD_20250411
["timestamp","ask_amount","ask_price","bid_price","bid_amount"]
[1744372847372,7.22578,1557.9,1557.8,6.4193]
[1744372847373,4.73608042,1557.9,1557.8,6.4193]
[1744372847559,4.73608042,1557.9,1557.8,8.52208259]
[1744372847764,4.73608042,1557.9,1557.8,8.16383235]
[1744372848838,4.73608042,1557.9,1557.8,8.94383235]
[1744372849149,4.73608042,1557.9,1557.8,9.00801875]
[1744372849344,4.73608042,1557.9,1557.8,11.94383235]
[1744372849764,61.762,1558.3,1558.1,6.41779]
[1744372850073,6.725,1558.3,1558.2,6.83297633]
[1744372850440,6.725,1558.3,1558.2,8.15805296]
[1744372850779,6.724,1558.6,1558.4,6.41651]
[1744372850981,5.52528042,1558.7,1558.4,12.83321]
[1744372851141,4.73608042,1558.7,1558.5,6.82238938]
[1744372851340,6.41524,1558.8,1558.5,6.82238938]
[1744372853190,6.41524,1558.8,1558.5,0.40614938]
[1744372853345,6.41601,1558.6,1558.5,0.40614938]
[1744372853550,6.41601,1558.6,1558.2,7.1815]
[1744372853866,6.41601,1558.6,1558.3,6.82603071]
[1744372854699,6.4157,1558.7,1558.4,6.41677]
[1744372854868,12.83148,1558.7,1558.5,0.41043471]
[1744372855199,6.4157,1558.7,1558.5,0.41043471]
[1744372855403,62.5582,1558.9,1558.5,0.41043471]
[1744372855573,68.9731,1558.9,1558.6,6.41573]
[1744372855900,68.9731,1558.9,1558.7,0.40859248]
[1744372856103,75.38808,1558.9,1558.7,0.40859248]
[1744372856463,62.5582,1558.9,1558.7,6.82389248]
[1744372856659,7.18683,1559.1,1558.8,6.41518]
[1744372856896,13.60096,1559.1,1558.9,0.41058672]
[1744372857176,6.41436,1559.0,1558.9,0.41058672]
[1744372857376,13.60108,1559.1,1558.9,0.41058672]
[1744372857576,13.60108,1559.1,1558.7,6.4153]
[1744372857901,13.37896,1559.0,1558.6,7.2175]
[1744372858219,7.18676,1559.1,1558.7,6.82804265]
[1744372858401,7.18676,1559.1,1558.8,6.41507]
[1744372858563,13.6009,1559.1,1558.8,6.41507]
[1744372858903,13.6009,1559.1,1558.9,0.41058672]
[1744372859095,13.6009,1559.1,1558.7,6.41545]
[1744372859401,13.6009,1559.1,1558.8,1.05297472]
[1744372859564,13.6009,1559.1,1558.8,0.41142972]
[1744372860202,6.41446,1559.0,1558.8,0.41142972]
[1744372861799,6.41525,1558.8,1558.5,6.88630254]
[1744372862004,12.83068,1558.8,1558.5,0.46998254]
[1744372862205,13.13625,1558.8,1558.5,0.76408425]
[1744372862582,6.4156,1558.7,1558.5,0.76408425]
[1744372863192,13.13625,1558.8,1558.5,7.18049425]
[1744372863515,19.55173,1558.8,1558.5,7.18049425]
[1744372863900,6.41561,1558.7,1558.4,7.17079]
[1744372864098,6.41561,1558.7,1558.2,12.83509]
[1744372864099,6.41634,1558.6,1558.2,12.83509]
[1744372864318,12.83273,1558.6,1558.2,12.83509]
[1744372864822,6.41696,1558.4,1558.1,7.6985104]
[1744372864976,6.41696,1558.4,1558.1,8.31934944]
[1744372865312,6.721,1558.4,1558.1,1.90127944]
[1744372865496,6.721,1558.4,1558.2,12.83508]
[1744372865812,6.721,1558.4,1558.2,6.41754]
[1744372866186,13.13796,1558.4,1558.1,6.41794]
[1744372866386,19.55504,1558.4,1558.1,6.90147123]
[1744372866582,6.96736,1558.3,1557.9,7.21172]
[1744372866790,6.721,1558.4,1557.9,8.06550026]
[1744372866791,12.83568,1558.2,1557.9,8.06550026]
[1744372867086,0.55,1558.1,1557.9,7.27260026]
[1744372867271,0.55,1558.3,1558.0,6.41837]
[1744372867703,0.55,1558.3,1558.1,6.41786]
[1744372868106,6.96731,1558.3,1558.0,6.41837]
[1744372868282,6.96731,1558.3,1558.0,7.14558503]
[1744372868484,6.96731,1558.3,1558.0,13.56395503]
[1744372869017,0.55,1558.3,1558.1,6.41806]
[1744372869512,0.55,1558.3,1558.1,6.41794]
[1744372869890,13.13787,1558.4,1558.2,6.41754]
[1744372869891,6.721,1558.4,1558.2,6.41754]
[1744372870092,6.721,1558.4,1558.2,7.135964]
[1744372870289,3.0,1558.7,1558.3,6.41687]
[1744372870290,14.48206,1558.7,1558.3,6.41687]
[1744372870492,13.93206,1558.7,1558.4,6.41683]
[1744372870694,6.715,1558.7,1558.4,6.41683]
[1744372871018,6.715,1558.7,1558.5,6.4162]
[1744372871187,6.715,1558.7,1558.5,13.89136064]
[1744372871586,6.715,1558.7,1558.6,6.41601]
[1744372871913,6.715,1558.7,1558.6,6.8320275]
[1744372872613,6.715,1558.7,1558.6,0.4160175]
[1744372873114,6.715,1558.7,1558.4,13.6334]
[1744372873115,13.6806,1558.7,1558.3,6.90252796]
[1744372873415,13.6806,1558.7,1558.4,6.83464491]
[1744372873592,6.715,1558.7,1558.6,6.41601]
[1744372873984,6.715,1558.7,1558.6,6.83218777]
[1744372874184,6.41524,1558.8,1558.6,0.41617777]
[1744372874810,6.9656,1558.7,1558.6,0.41617777]
[1744372874985,7.781,1558.7,1558.6,0.41617777]
[1744372875184,6.41641,1558.6,1558.2,13.64161]
[1744372875384,6.96657,1558.5,1558.2,13.6416]
[1744372875619,6.96657,1558.5,1558.1,6.41797]
[1744372876012,6.41684,1558.4,1558.1,12.83593]
[1744372876195,6.41684,1558.4,1558.1,14.2720945]
[1744372876592,0.55,1558.5,1558.2,6.41758]
[1744372876799,0.55,1558.5,1558.3,12.83423]
[1744372877121,0.55,1558.5,1558.3,12.83424]
[1744372877418,13.13104,1558.6,1558.3,12.83407]
[1744372877720,6.41536,1558.8,1558.4,0.8017]
[1744372877920,68.97169,1558.9,1558.6,6.41579]
[1744372878126,0.55,1558.8,1558.6,6.41579]
[1744372878425,62.5568,1558.9,1558.7,6.41559]
[1744372878798,62.5568,1558.9,1558.6,6.41579]
[1744372879001,62.5568,1558.9,1558.6,7.057369]
[1744372879226,61.734,1558.9,1558.8,6.41519]
[1744372879920,61.734,1558.9,1558.7,7.72987859]
[1744372880125,61.734,1558.9,1558.7,14.14535859]
[1744372880325,61.734,1558.9,1558.8,6.41519]
[1744372880528,61.734,1558.9,1558.8,7.82969686]
[1744372881328,0.55,1559.0,1558.8,14.24488686]
[1744372881692,0.55,1559.0,1558.8,7.82969686]
[1744372881893,0.55,1559.0,1558.8,6.41519]
[1744372882722,6.96444,1559.0,1558.7,7.73001859]
[1744372882884,6.96444,1559.0,1558.7,6.41554]
[1744372883090,13.37907,1559.0,1558.7,6.41554]
[1744372884127,0.55,1558.8,1558.4,6.41683]
[1744372884428,7.264,1558.8,1558.6,12.8318]
[1744372884661,7.264,1558.8,1558.6,6.41589]
[1744372885205,7.264,1558.8,1558.6,12.83178]
[1744372885406,7.264,1558.8,1558.6,6.41589]
[1744372885764,7.19855,1558.3,1557.9,6.41877]
[1744372885944,13.91255,1558.3,1558.0,0.641877]
[1744372886138,13.91255,1558.3,1558.0,1.05900224]
[1744372886338,0.55,1558.2,1558.0,1.05900224]
[1744372886650,6.96772,1558.2,1558.0,1.05900224]
[1744372886950,6.96772,1558.2,1558.0,0.41712524]
[1744372887115,6.96772,1558.2,1557.8,14.56713376]
[1744372887311,6.96772,1558.2,1558.1,0.41676162]
[1744372887528,6.96772,1558.2,1557.8,14.56713376]
[1744372888037,6.41829,1558.1,1557.9,0.41828954]
[1744372888410,6.41829,1558.1,1557.8,1.246717]
[1744372888606,6.41829,1558.1,1558.0,0.41760558]
[1744372888943,12.83652,1558.1,1558.0,0.41760558]
[1744372889173,6.41826,1558.1,1558.0,0.41760558]
[1744372889324,6.41826,1558.1,1557.8,1.246717]
[1744372889641,6.41826,1558.1,1557.9,0.41844966]
[1744372889816,6.41826,1558.1,1557.9,1.22689333]
[1744372890004,6.41826,1558.1,1557.9,0.80844367]
[1744372890202,6.41826,1558.1,1558.0,0.41760558]
[1744372890406,13.38549,1558.2,1558.0,0.41760558]
[1744372890638,6.41807,1558.1,1558.0,0.41760558]
[1744372890943,6.96807,1558.1,1558.0,0.41760558]
[1744372891144,6.96807,1558.1,1557.8,0.490017]
[1744372891145,0.55,1558.1,1557.9,6.41889]
[1744372891326,0.55,1558.1,1558.0,0.41744548]
[1744372891644,6.4178,1558.2,1558.0,0.41744548]
[1744372892220,12.83562,1558.2,1558.0,0.41744548]
[1744372892424,6.714,1558.3,1558.1,6.41806]
[1744372892621,13.13138,1558.3,1558.1,1.33180397]
[1744372892856,13.13138,1558.3,1558.2,0.42048991]
[1744372893266,6.714,1558.3,1558.2,0.42048991]
[1744372894033,6.41724,1558.3,1558.2,0.42048991]
[1744372894229,12.834,1558.4,1558.2,0.42048991]
[1744372894468,6.41724,1558.3,1558.2,0.42048991]
[1744372895063,12.83466,1558.3,1558.0,6.41848]
[1744372895359,12.83467,1558.3,1558.1,1.06206116]
[1744372895942,12.83467,1558.3,1558.1,0.42021316]
[1744372897073,6.41766,1558.2,1558.1,0.42021316]
[1744372897234,6.96766,1558.2,1558.1,0.42021316]
[1744372897434,6.96766,1558.2,1557.9,2.09863343]
[1744372897656,13.38546,1558.2,1558.1,0.41989295]
[1744372897854,6.41757,1558.3,1558.0,6.83825631]
[1744372898066,6.96703,1558.4,1558.1,1.10275798]
[1744372898284,13.38409,1558.4,1558.1,7.52074798]
[1744372899640,0.55,1558.4,1558.2,6.41765]
[1744372900175,13.13107,1558.6,1558.3,0.41724477]
[1744372900359,19.54737,1558.6,1558.3,6.83438477]
[1744372900563,19.54737,1558.6,1558.3,8.24058725]
[1744372900961,13.13107,1558.6,1558.3,8.24057725]
[1744372901275,13.13107,1558.6,1558.3,14.65770725]
[1744372901484,6.715,1558.6,1558.4,6.41673]
[1744372901843,13.13102,1558.6,1558.5,0.41555762]
[1744372902277,13.13102,1558.6,1558.3,14.24047248]
[1744372902465,13.13102,1558.6,1558.5,0.41555762]
[1744372902673,13.13102,1558.6,1558.4,1.84044839]
[1744372902876,13.13102,1558.6,1558.5,0.41555762]
[1744372904578,13.68102,1558.6,1558.5,0.41555762]
[1744372904785,6.96658,1558.5,1558.2,7.22765]
[1744372905081,6.96658,1558.5,1558.3,1.14000977]
[1744372905082,13.38316,1558.5,1558.3,1.14000977]
[1744372905283,13.38316,1558.5,1558.3,0.41724477]
[1744372906250,6.41683,1558.4,1558.3,0.41724477]
[1744372906455,13.38321,1558.5,1558.3,0.41724477]
[1744372906775,13.38321,1558.5,1558.2,6.41765]
[1744372907085,6.96658,1558.5,1558.3,0.41641059]
[1744372907292,13.38314,1558.5,1558.3,0.41641059]
[1744372907651,6.41683,1558.4,1558.3,0.41641059]
[1744372908169,6.41683,1558.4,1558.3,0.41625052]
[1744372908351,6.41683,1558.4,1558.1,13.32355581]
[1744372908549,13.38319,1558.5,1558.2,7.74997558]
[1744372908760,6.96656,1558.5,1558.2,8.16706984]
[1744372908964,6.41684,1558.4,1558.2,1.74944984]
[1744372909566,13.38334,1558.5,1558.2,8.16709984]
[1744372909967,13.38322,1558.5,1558.2,8.16709984]
[1744372910269,6.41724,1558.3,1558.2,0.41709426]
[1744372910664,6.41724,1558.3,1558.0,13.62122]
[1744372910871,6.41724,1558.3,1558.2,0.41709426]
[1744372911069,6.41724,1558.3,1558.1,0.4179381]
[1744372911253,6.96724,1558.3,1558.2,0.41709426]
[1744372911681,13.38476,1558.3,1558.0,7.20286]
[1744372911995,6.96724,1558.3,1558.1,0.4179381]
[1744372912560,0.55,1558.3,1558.1,6.8359481]
[1744372913300,0.55,1558.3,1558.1,13.2539581]
[1744372913492,6.41703,1558.4,1558.2,6.41764]
[1744372913697,12.83325,1558.5,1558.2,6.41764]
[1744372913901,6.41683,1558.4,1558.3,0.41625052]
[1744372914073,12.83318,1558.5,1558.3,0.41625052]
[1744372914260,12.83318,1558.5,1558.2,6.41759]
[1744372914462,13.38318,1558.5,1558.4,0.41540689]
[1744372914666,13.38318,1558.5,1558.3,0.41625052]
[1744372914868,13.38318,1558.5,1558.4,0.41540689]
[1744372915187,13.38318,1558.5,1558.2,6.41759]
[1744372915389,6.41683,1558.4,1558.3,0.41625052]
[1744372915589,6.41683,1558.4,1558.1,12.8359]
[1744372915790,6.41683,1558.4,1558.2,0.41709426]
[1744372916104,12.83399,1558.4,1558.2,0.41709426]
[1744372916894,6.41683,1558.4,1558.2,0.41709426]
[1744372917511,12.83391,1558.4,1558.2,0.41709426]
[1744372918328,6.41724,1558.3,1558.2,0.41709426]
[1744372918668,6.41724,1558.3,1558.0,7.69205513]
[1744372918669,6.41777,1558.2,1558.0,0.7845]
[1744372919006,6.41777,1558.2,1557.9,12.83754]
[1744372919219,6.41777,1558.2,1557.9,14.9187098]
[1744372919701,6.41822,1558.1,1557.8,14.160137]
[1744372920170,6.41822,1558.1,1557.8,14.160147]
[1744372920486,6.4182,1558.1,1557.8,1.321817]
[1744372920687,12.83665,1558.1,1557.8,7.741087]
[1744372920894,13.6778,1558.2,1557.9,6.41864]
[1744372921202,20.09559,1558.2,1558.0,0.641864]
[1744372921404,13.67779,1558.2,1557.9,6.41864]
[1744372921603,7.26,1558.2,1557.9,0.49275515]
[1744372921766,12.83651,1558.1,1557.8,7.740987]
[1744372921971,6.41849,1558.0,1557.8,0.490017]
[1744372922180,12.83733,1558.0,1557.8,0.490017]
[1744372923104,13.67768,1558.2,1557.8,6.909167]
[1744372923105,13.38557,1558.2,1557.8,6.909167]
[1744372923416,0.55,1558.2,1558.0,6.41832]
[1744372923719,0.55,1558.2,1558.0,12.8367]
[1744372924008,0.55,1558.2,1558.0,6.41832]
[1744372924898,0.55,1558.0,1557.8,6.909207]
[1744372925217,0.55,1558.1,1557.9,6.41885]
[1744372926013,6.41837,1558.1,1557.8,1.9043517]
[1744372926178,0.55,1558.0,1557.8,0.490017]
[1744372926503,0.55,1558.0,1557.8,6.909307]
[1744372926918,0.55,1558.0,1557.8,13.328507]
[1744372927218,19.54569,1558.2,1557.9,6.41889]
[1744372927415,6.41814,1558.1,1557.8,8.7971938]
[1744372927715,6.71,1558.2,1556.9,6.42288]
[1744372927716,6.42095,1557.4,1556.9,6.42288]
[1744372927925,14.20867,1557.3,1556.8,12.84641]
[1744372928214,6.42179,1557.2,1556.8,6.89296664]
[1744372928421,12.84389,1557.2,1556.8,6.89296664]
[1744372928722,12.84389,1557.2,1556.8,8.3024403]
[1744372929292,12.84389,1557.2,1556.8,1.8793003]
[1744372929826,6.42245,1557.1,1556.8,1.40947366]
[1744372930017,12.84489,1557.1,1556.8,1.40947366]
[1744372930396,6.42302,1556.9,1556.5,0.7725]
[1744372930716,6.42425,1556.6,1556.3,0.7725]
[1744372931028,6.42404,1556.7,1556.3,0.7725]
[1744372931029,6.42404,1556.7,1556.3,7.19793]
[1744372931191,6.42404,1556.7,1556.4,0.40731711]
[1744372931395,0.55,1556.7,1556.4,0.40731711]
[1744372931731,6.42549,1556.3,1556.2,14.67028708]
[1744372931933,7.73989,1556.3,1556.2,14.67028708]
[1744372932090,6.42684,1556.0,1555.8,0.8297]
[1744372932291,7.74003,1556.3,1555.8,0.8297]
[1744372932534,0.7644,1556.3,1555.9,6.42698]
[1744372932836,6.42513,1556.4,1556.0,6.42652]
[1744372933536,6.42574,1556.3,1555.9,7.152758]
[1744372933694,6.42571,1556.3,1555.9,7.152758]
[1744372933894,0.55,1556.3,1555.9,3.725668]
[1744372934089,6.42584,1556.3,1555.9,7.21679129]
[1744372934289,12.85155,1556.3,1555.9,7.152528]
[1744372934495,0.55,1556.4,1555.9,0.725668]
[1744372934816,0.55,1556.4,1555.8,0.8297]
[1744372934817,6.42471,1556.5,1556.1,12.8523]
[1744372935217,6.42471,1556.5,1556.1,12.85229]
[1744372935423,20.86539,1556.6,1556.2,6.42573]
[1744372935933,6.42687,1556.0,1555.5,6.42861]
[1744372936106,0.55,1555.9,1555.6,6.42822]
[1744372936836,13.9431,1556.1,1555.7,6.42793]
[1744372937035,13.9431,1556.1,1555.7,7.713545]
[1744372937195,7.2341,1556.1,1555.7,6.42793]
[1744372937398,7.2341,1556.1,1555.7,7.18244]
[1744372937840,13.66068,1556.1,1555.7,7.18244]
[1744372938045,6.42682,1556.0,1555.7,7.18244]
[1744372938934,7.2341,1556.1,1555.7,7.18241]
[1744372939100,0.8077,1556.1,1555.8,6.4274]
[1744372939297,13.40203,1556.2,1555.8,6.4274]
[1744372939734,6.42635,1556.1,1555.8,6.4274]
[1744372939908,6.97596,1556.2,1555.8,6.42739]
[1744372940105,7.21185,1556.3,1555.9,6.42702]
[1744372940309,7.21185,1556.3,1556.0,6.42673]
[1744372940551,6.42509,1556.4,1556.1,6.42631]
[1744372940710,11.94108042,1556.7,1556.3,6.42529]
[1744372941036,4.48648042,1556.7,1556.5,6.42449]
[1744372941199,4.48648042,1556.7,1556.5,7.142129]
[1744372941394,4.48648042,1556.7,1556.6,6.42425]
[1744372941646,4.48648042,1556.7,1556.6,9.42425]
[1744372941942,4.48648042,1556.7,1556.6,10.25095]
[1744372943838,13.13286,1557.2,1556.8,6.42306]
[1744372944039,13.13286,1557.2,1556.8,7.065366]
[1744372944242,19.55486,1557.2,1556.8,13.488566]
[1744372945164,6.42233,1557.1,1556.8,0.642306]
[1744372945455,19.55473,1557.2,1556.8,7.065586]
[1744372945660,6.42145,1557.3,1556.9,6.42286]
[1744372945829,0.7996,1557.4,1557.0,0.642286]
[1744372946033,12.84465,1557.1,1556.8,0.642306]
[1744372946235,6.42219,1557.1,1556.9,0.40254266]
[1744372946559,6.42219,1557.1,1556.8,6.42328]
[1744372946759,6.97219,1557.1,1557.0,0.39932685]
[1744372946935,6.97219,1557.1,1556.9,0.40017224]
[1744372947134,0.55,1557.1,1557.0,0.39932685]
[1744372947866,0.55,1557.1,1556.9,6.42297]
[1744372948162,0.55,1557.1,1557.0,0.3650202]
[1744372948563,6.97219,1557.1,1557.0,0.3650202]
[1744372948938,6.97219,1557.1,1556.8,6.42327]
[1744372949139,6.97219,1557.1,1557.0,0.3650202]
[1744372949326,6.97219,1557.1,1556.9,0.36586559]
[1744372949526,6.97219,1557.1,1557.0,0.3650202]
[1744372949950,6.97219,1557.1,1556.8,13.77755021]
[1744372950150,6.97219,1557.1,1557.0,0.3650202]
[1744372950675,6.97219,1557.1,1556.8,12.84655]
[1744372950969,6.97219,1557.1,1556.9,0.36586559]
[1744372951330,6.97219,1557.1,1556.8,8.007925]
[1744372951531,6.97219,1557.1,1557.0,0.3650202]
[1744372951730,13.39454,1557.1,1556.9,0.36586559]
[1744372951967,13.39454,1557.1,1557.0,0.3650202]
[1744372952172,6.97219,1557.1,1557.0,0.3650202]
[1744372952474,7.79149,1557.1,1557.0,0.3650202]
[1744372952770,1.3693,1557.1,1556.8,6.42326]
[1744372952972,7.79149,1557.1,1557.0,0.3650202]
[1744372953273,0.55,1557.1,1557.0,0.3650202]
[1744372954355,6.97219,1557.1,1557.0,0.3650202]
[1744372954739,0.55,1557.0,1556.8,6.4233]
[1744372954973,0.55,1557.0,1556.8,12.8466]
[1744372955348,6.42185,1557.2,1556.9,6.42302]
[1744372955554,0.55,1557.2,1557.0,6.42253]
[1744372956068,0.55,1557.2,1557.0,5.69393796]
[1744372956374,6.97178,1557.2,1556.8,6.42324]
[1744372956576,13.39395,1557.2,1556.8,12.84654]
[1744372956738,13.39379,1557.2,1556.9,6.42299]
[1744372957160,13.39379,1557.2,1556.8,12.84654]
[1744372957367,13.39395,1557.2,1556.8,6.42324]
[1744372957566,6.97178,1557.2,1556.9,6.42295]
[1744372957773,6.97178,1557.2,1556.9,6.42289]
[1744372957975,0.55,1557.2,1556.8,0.06422882]
[1744372958278,0.55,1557.2,1557.0,6.42245]
[1744372958476,7.22684,1557.5,1557.1,6.42219]
[1744372958647,7.22684,1557.5,1557.2,6.42177]
[1744372958978,13.64753,1557.5,1557.2,6.42165]
[1744372959177,13.64237,1557.7,1557.3,6.42104]
[1744372959335,0.55,1557.6,1557.4,6.42095]
[1744372959535,0.55,1557.6,1557.3,12.8423]
[1744372959536,6.97017,1557.6,1557.3,12.8423]
[1744372959741,6.42017,1557.6,1557.3,12.8423]
[1744372959974,7.22252,1557.7,1557.4,6.42084]
[1744372960175,7.22252,1557.7,1557.3,6.42123]
[1744372960476,12.84054,1557.6,1557.4,0.36167406]
[1744372960677,6.42024,1557.6,1557.4,0.36167406]
[1744372960906,6.97015,1557.6,1557.4,0.36167406]
[1744372962679,0.55,1557.6,1557.4,0.36167406]
[1744372962887,0.8027,1557.7,1557.4,1.03996447]
[1744372963176,6.707,1557.8,1557.6,6.4201]
[1744372963340,6.707,1557.8,1557.6,12.84011]
[1744372963547,6.707,1557.8,1557.7,0.35913985]
[1744372963941,13.12632,1557.8,1557.5,12.8408]
[1744372964181,13.12632,1557.8,1557.7,0.35913985]
[1744372964478,19.54578,1557.8,1557.7,0.35913985]
[1744372964664,19.54578,1557.8,1557.5,6.4204]
[1744372964845,19.54578,1557.8,1557.6,0.35998448]
[1744372965049,13.12632,1557.8,1557.6,0.35998448]
[1744372965244,6.707,1557.8,1557.6,0.35998448]
[1744372966147,19.54587,1557.8,1557.6,0.35998448]
[1744372966347,6.96972,1557.7,1557.6,0.35998448]
[1744372966787,6.96972,1557.7,1557.4,12.84178]
[1744372966947,0.55,1557.7,1557.6,0.35799365]
[1744372967162,0.55,1557.7,1557.5,6.77934838]
[1744372967365,0.55,1557.7,1557.6,0.35799365]
[1744372967797,6.707,1557.8,1557.6,0.35799365]
[1744372968105,7.17589,1558.1,1557.8,12.8386]
[1744372968305,0.55,1558.0,1557.8,12.8386]
[1744372968501,0.55,1558.0,1557.9,0.29686822]
[1744372968799,0.55,1558.0,1557.7,6.41966]
[1744372969105,6.96889,1557.9,1557.8,0.29771263]
[1744372969474,0.55,1557.7,1557.5,12.84086]
[1744372969805,0.55,1557.7,1557.6,0.29940178]
[1744372970205,0.55,1557.7,1557.6,6.71953178]
[1744372971702,6.96972,1557.7,1557.6,0.29940178]
[1744372972005,7.73612,1557.7,1557.6,0.29940178]
[1744372972201,7.73612,1557.7,1557.4,12.84161]
[1744372972506,1.3164,1557.7,1557.5,6.72072652]
[1744372972703,0.55,1557.7,1557.5,6.72072652]
[1744372972869,0.8311,1557.9,1557.6,6.42013]
[1744372973204,12.83736,1558.0,1557.7,6.71811715]
[1744372973205,6.41857,1558.0,1557.7,6.71811715]
[1744372973604,12.8372,1558.0,1557.7,6.71811715]
[1744372973968,6.41898,1557.9,1557.7,6.71826715]
[1744372974476,6.41857,1558.0,1557.7,6.71826715]
[1744372974673,12.83744,1558.0,1557.7,6.71826715]
[1744372974879,6.41857,1558.0,1557.7,13.13797715]
[1744372975574,6.41857,1558.0,1557.7,13.13786715]
[1744372976105,6.41857,1558.0,1557.7,6.71815715]
[1744372976312,12.8372,1558.0,1557.7,6.71815715]
[1744372977416,12.83741,1558.0,1557.7,6.71823715]
[1744372977915,13.38846,1557.9,1557.7,0.29855715]
[1744372978120,13.38846,1557.9,1557.5,0.8306]
[1744372978121,12.83989,1557.7,1557.5,0.8306]
[1744372978318,6.41989,1557.7,1557.4,6.42074]
[1744372978489,6.41989,1557.7,1557.4,12.84155]
[1744372979315,12.83981,1557.7,1557.4,6.42074]
[1744372979615,6.42072,1557.5,1557.2,6.42157]
[1744372979979,6.42072,1557.5,1557.2,12.84322]
[1744372980181,0.7757,1557.8,1557.3,0.06420895]
[1744372980515,6.41851,1558.0,1557.7,6.41955]
[1744372980675,12.83717,1558.0,1557.7,6.41955]
[1744372981517,6.41851,1558.0,1557.7,12.83915]
[1744372981695,13.64783,1558.1,1557.8,6.41909]
[1744372981895,6.41904,1557.9,1557.7,0.8122]
[1744372982098,6.41904,1557.9,1557.6,12.84004]
[1744372982408,13.38722,1558.0,1557.7,6.4197]
[1744372982595,6.96853,1558.0,1557.7,12.83931]
[1744372982799,13.38724,1558.0,1557.7,6.41961]
[1744372982999,6.96853,1558.0,1557.6,6.42003]
[1744372983198,13.38742,1558.0,1557.7,6.41969]
[1744372983623,6.41902,1557.9,1557.6,12.84006]
[1744372983822,6.96853,1558.0,1557.7,6.41971]
[1744372984020,6.41901,1557.9,1557.6,6.42003]
[1744372984326,6.42078,1557.5,1557.1,0.7559]
[1744372984688,12.8415,1557.5,1557.2,6.42166]
[1744372984887,6.42072,1557.5,1557.2,12.84332]
[1744372985117,7.17666,1557.6,1557.3,6.42133]
[1744372985430,7.17666,1557.6,1557.3,12.84259]
[1744372985834,13.59699,1557.6,1557.3,6.42126]
[1744372986028,6.704,1557.8,1557.3,6.42126]
[1744372986186,12.8398,1557.7,1557.4,6.42092]
[1744372986520,6.41986,1557.7,1557.3,13.63504]
[1744372986724,6.41986,1557.7,1557.4,6.42093]
[1744372987021,12.83994,1557.7,1557.4,6.42083]
[1744372987330,12.83994,1557.7,1557.3,13.635]
[1744372987623,6.42023,1557.6,1557.3,7.21374]
[1744372987924,6.42023,1557.6,1557.3,13.63498]
[1744372988321,6.42023,1557.6,1557.3,7.21374]
[1744372988688,12.84065,1557.6,1557.3,7.21374]
[1744372989414,12.84065,1557.6,1557.3,0.7925]
[1744372989625,6.9707,1557.5,1557.2,6.42166]
[1744372989833,6.9707,1557.5,1557.2,12.84332]
[1744372990133,12.84233,1557.4,1557.1,0.7985]
[1744372990818,6.42105,1557.4,1557.1,7.22064]
[1744372991404,12.84221,1557.4,1557.2,0.2505647]
[1744372991828,6.42137,1557.3,1557.2,0.2505647]
[1744372992022,6.97137,1557.3,1557.2,0.2505647]
[1744372992327,6.42202,1557.2,1556.9,0.8013]
[1744372992522,12.84404,1557.2,1557.0,0.25472648]
[1744372993025,6.97219,1557.1,1557.0,0.25472648]
[1744372993434,6.4226,1557.0,1556.7,13.67233]
[1744372993812,6.97219,1557.1,1556.8,6.67989757]
[1744372994012,6.97219,1557.1,1556.8,13.10320757]
[1744372994491,6.42188,1557.2,1556.8,13.10320757]
[1744372994492,0.55,1557.2,1557.0,6.4224]
[1744372994825,0.55,1557.2,1557.1,0.25404159]
[1744372995392,7.22724,1557.3,1557.0,12.84518]
[1744372995596,7.22724,1557.3,1557.1,0.25404159]
[1744372995898,7.74208,1557.2,1557.1,0.25404159]
[1744372996105,7.19367,1556.9,1556.5,6.42454]
[1744372996289,13.39714,1556.8,1556.6,0.25971224]
[1744372996490,6.97353,1556.8,1556.5,6.42454]
[1744372996686,0.55,1556.8,1556.5,6.4243]
[1744372996931,20.31781,1556.9,1556.6,0.25987264]
[1744372997305,6.42358,1556.8,1556.6,0.25987264]
[1744372997710,6.42357,1556.8,1556.6,0.25987264]
[1744372997912,12.84722,1556.8,1556.6,0.25987264]
[1744372998309,6.42384,1556.7,1556.6,0.25987264]
[1744372998520,6.42384,1556.7,1556.4,6.42497]
[1744372998825,12.84782,1556.7,1556.5,0.26184153]
[1744372999033,6.97425,1556.6,1556.5,0.26184153]
[1744372999406,6.97425,1556.6,1556.3,0.7556]
[1744372999407,6.42467,1556.5,1556.3,0.7556]
[1744372999888,6.97425,1556.6,1556.3,7.18105]
[1744373000293,6.97425,1556.6,1556.3,13.60642]
[1744373000490,0.55,1556.6,1556.4,6.42491]
[1744373000720,0.55,1556.7,1556.5,6.42455]
[1744373000942,6.42356,1556.8,1556.5,12.8491]
[1744373001133,12.84716,1556.8,1556.5,6.42455]
[1744373002236,6.42387,1556.7,1556.4,6.42497]
[1744373002529,12.84786,1556.7,1556.4,6.42497]
[1744373002835,6.42387,1556.7,1556.4,12.84993]
[1744373003931,12.84785,1556.7,1556.4,6.42496]
[1744373004134,6.42387,1556.7,1556.4,6.42496]
[1744373004748,12.84803,1556.7,1556.4,6.42496]
[1744373005159,6.42387,1556.7,1556.4,12.84993]
[1744373005750,0.8059,1556.6,1556.4,6.42496]
[1744373006342,7.78029,1556.6,1556.5,0.26518501]
[1744373006753,7.78029,1556.6,1556.3,13.60634]
[1744373006951,7.78029,1556.6,1556.5,0.26518501]
[1744373007128,7.78029,1556.6,1556.4,0.26603114]
[1744373007327,6.97467,1556.5,1556.4,0.26603114]
[1744373007527,6.9748,1556.5,1556.2,6.4259]
[1744373007746,13.3997,1556.5,1556.3,0.26687737]
[1744373008054,20.1037,1556.5,1556.3,0.26687737]
[1744373008468,6.97508,1556.4,1556.3,0.26687737]